Cogmind - Beta 16.1 @@@ ROGUE MODE // 2026.04.11 @ 11:52:45 Player: SovietPaperclip Result: Destroyed by D-53 Grenadier with Mini Grenade Launcher Performance ------------- Evolutions (0) 0 Regions Visited (4) 800 Robots Destroyed (27) 135 Value Destroyed (389) 389 Prototype IDs (0) 0 Alien Tech Used (0) 0 Bonus (0) 0 TOTAL SCORE: 1324 Bonus ------- None Cogmind --------- Core Integrity 0/250 Matter 280/300 Energy 94/100 System Corruption 0% Temperature Cool (0) Movement Core (350) Ox6 Location -9/Mines Parts ------- > --- POWER (1) -------- (None) > --- PROPULSION (2) --- (None) > --- UTILITY (2) ------ Large Storage Unit > --- WEAPON (2) ------- Mini Grenade Launcher > --- INVENTORY (15) --- Light Nuclear Core Light Treads High-capacity Storage Unit High-capacity Matter Pod (200) Machine Analyzer Hacking Suite Tractor Beam Assault Rifle Assault Rifle Shotgun Shotgun Shotgun Rocket Launcher Plasma Cutter Hammer Peak State ------------ > --- POWER ------------ Light Ion Engine > --- PROPULSION ------- Light Treads Light Treads > --- UTILITY ---------- Large Storage Unit Seismic Detector > --- WEAPON ----------- Shotgun Shotgun > --- INVENTORY -------- Ion Engine Machine Analyzer Hacking Suite Tractor Beam Assault Rifle Assault Rifle Shotgun Shotgun Mini Grenade Launcher Mini Grenade Launcher Mini Grenade Launcher Mini Grenade Launcher Plasma Cutter Hammer [Rating: 11] Favorites ----------- Power Light Ion Engine Engine Light Ion Engine Propulsion Light Treads Treads Light Treads Leg Aluminum Leg Utility Seismic Detector Device Seismic Detector Storage Large Storage Unit Weapon Shotgun Ballistic Gun Shotgun Launcher Mini Grenade Launcher Impact Weapon Hammer Build | -11 -10 -10 -10 -9 ------- Run | Yrd Mat Min Exi Min Slots Evolved . | . . . . . Power . | . . . . . Propulsion . | . . . . . Utility . | . . . . . Weapon . | . . . . . Parts Attached 17 | 8 5 1 1 2 Power 2 | 1 . 1 . . Engine 2 | 1 . 1 . . Core . | . . . . . Reactor . | . . . . . Propulsion 3 | 3 . . . . Treads 2 | 2 . . . . Leg 1 | 1 . . . . Wheel . | . . . . . Hover . | . . . . . Flight . | . . . . . Utility 4 | 2 1 . 1 . Device 1 | 1 . . . . Storage 3 | 1 1 . 1 . Processor . | . . . . . Hackware . | . . . . . Protection . | . . . . . Artifact . | . . . . . Weapon 8 | 2 4 . . 2 Energy Gun . | . . . . . Energy Cannon . | . . . . . Ballistic Gun 5 | 2 3 . . . Ballistic Cannon . | . . . . . Launcher 2 | . . . . 2 Special Weapon . | . . . . . Impact Weapon 1 | . 1 . . . Slashing Weapon . | . . . . . Piercing Weapon . | . . . . . Special Melee Weapon . | . . . . . Unidentified Prototypes . | . . . . . Parts Lost 5 | . . . . 5 Power 1 | . . . . 1 Propulsion 2 | . . . . 2 Utility 1 | . . . . 1 Weapon 1 | . . . . 1 Highest Loss Streak 5 | . . . . 5 To Critical Strikes . | . . . . . Average Backups 11 | 1 7 14 14 15 Power . | . 1 1 1 1 Propulsion . | . . 1 1 1 Utility 2 | . 2 3 3 5 Weapon 6 | . 3 8 7 7 Tool/Special . | . . . . . Unused Backups 13 | . . 4 1 8 Power 2 | . . 1 . 1 Propulsion 2 | . . 1 . 1 Utility 4 | . . . . 4 Weapon 4 | . . 2 1 1 Tool/Special 1 | . . . . 1 Average Slot Usage (%) 99 | . 100 100 100 96 Engine 13 | . 14 14 14 12 Treads 27 | . 28 28 28 26 Device 14 | . 14 14 14 14 Storage 14 | . 14 14 14 14 Ballistic Gun 26 | . 25 28 28 23 Peak Build Rating 11 | 7 11 11 11 11 Average Rating 9 | 4 8 11 11 10 On Entrance 8 | . 7 11 11 11 Avg Prop Armor Cover (%) . | . . . . . Naked Turns . | . . . . . Heaviest Build 50 | 13 30 30 50 31 Greatest Support 40 | 40 40 40 40 40 Greatest Overweight (x) 1 | 1 . . 1 . Average Overweight (x) . | . . . . . Largest Inventory Capacity 20 | 8 15 15 20 15 Average Capacity 14 | 6 13 15 15 15 Most Carried 15 | 2 15 15 15 15 Average Carried 11 | 1 7 14 14 15 Final Capacity 15 | 8 15 15 15 15 Final Carried 15 | 2 15 14 15 15 Class Distribution -------------------- 100% | Mutant Dominant Class ---------------- Mutant | -10/Materials Mutant | -10/Mines Mutant | -10/Exiles Mutant | -9/Mines Resources | -11 -10 -10 -10 -9 ----------- Run | Yrd Mat Min Exi Min Matter Collected 800 | 224 158 232 70 116 Remotely . | . . . . . Salvage Created 624 | 104 245 256 . 19 Parts 63 | 6 24 33 . . Haulers Intercepted 1 | . 1 . . . Recyclers Shooed 1 | 1 . . . . Parts Field Recycled . | . . . . . Retrieved Matter . | . . . . . Parts Self-Destructed . | . . . . . Prevented . | . . . . . Parts Restored . | . . . . . Kills | -11 -10 -10 -10 -9 ------- Run | Yrd Mat Min Exi Min Combat Hostiles Destroyed 25 | . 5 16 . 4 Melee 1 | . 1 . . . Guns 20 | . 4 16 . . AOE 4 | . . . . 4 Classes Destroyed 9 | 2 6 . . 1 Tunneler 1 | 1 . . . . Hauler 1 | . 1 . . . Recycler 1 | 1 . . . . Mechanic 1 | . 1 . . . Operator 1 | . 1 . . . Watcher 1 | . 1 . . . Swarmer 17 | . 3 14 . . Grunt 4 | . 2 2 . . Assembled 4 | . . . . 4 Best Kill Streak 6 | 1 3 6 . 4 Combat Bots Only 6 | . 3 6 . 4 Max Kills in Single Turn 3 | 1 2 2 . 3 Gunslinging 1 | . 1 . . . Exploded 3 | . . . . 3 Melee 1 | . 1 . . . Uniques/NPCs Destroyed . | . . . . . Combat | -11 -10 -10 -10 -9 -------- Run | Yrd Mat Min Exi Min Hostile Shots Fired 74 | . 12 42 . 20 Missed 14 | . 3 7 . 4 Hits 60 | . 9 35 . 16 Projectile 60 | . 9 35 . 16 AOE 11 | . . . . 11 Damage Taken 893 | . 95 295 . 503 Core 255 | . 20 37 . 198 Absorbed by Shields . | . . . . . Core Remaining (%) 100 | 100 . . . . Volleys Fired 50 | 5 21 19 . 5 Largest 2 | 2 2 2 . 2 Hottest 46 | 40 46 46 . 46 Shots Fired 96 | 10 42 38 . 6 Gun 92 | 10 42 38 . 2 Cannon . | . . . . . Launcher 4 | . . . . 4 Special . | . . . . . Kinetic 92 | 10 42 38 . 2 Thermal . | . . . . . Explosive 4 | . . . . 4 Electromagnetic . | . . . . . Robot Hit Streak 8 | 4 3 8 . 2 Robot Miss Streak 5 | 3 5 3 . 3 Penetration Max . | . . . . . Secondary Targets 3 | . 1 2 . . Max Gunslinging Chain 1 | . 1 1 . . Shots Hit Robots 55 | 5 20 28 . 2 Core Hits 45 | 3 12 19 . 11 Critical Kills . | . . . . . Critical Parts Destroyed . | . . . . . Critical Strikes . | . . . . . Melee Attacks 4 | . 4 . . . Impact 4 | . 4 . . . Slashing . | . . . . . Piercing . | . . . . . Sneak Attacks . | . . . . . Combat Hostiles . | . . . . . Follow-up Attacks . | . . . . . Damage Inflicted 1081 | 59 296 379 . 347 Guns 686 | 59 229 379 . 19 Cannons . | . . . . . Explosions 328 | . . . . 328 Melee 67 | . 67 . . . Ramming . | . . . . . Kinetic 686 | 59 229 379 . 19 Thermal . | . . . . . Explosive 328 | . . . . 328 Electromagnetic . | . . . . . Impact 67 | . 67 . . . Slashing . | . . . . . Piercing . | . . . . . Highest Corruption . | . . . . . Average Corruption . | . . . . . Corruption Purged . | . . . . . Corruption Blocked . | . . . . . Overload Shots . | . . . . . Overflow Damage 12 | . 4 . . 8 Projectiles . | . . . . . Explosions 8 | . . . . 8 Melee 4 | . 4 . . . Knockbacks . | . . . . . Impact . | . . . . . Kinetic . | . . . . . Secondary . | . . . . . Self-Inflicted Damage . | . . . . . Shots . | . . . . . Rammed . | . . . . . Targets Rammed . | . . . . . Kicked . | . . . . . Crushed . | . . . . . Highest Temperature 6 | . 6 5 . . Average Temperature 3 | . 6 3 . . Received Heat Transfer 75 | . 33 42 . . Siege Activations . | . . . . . Martial Activations . | . . . . . Shielding Activations . | . . . . . Robots Disrupted . | . . . . . Combat Hostiles . | . . . . . Robots Corrupted . | . . . . . Combat Hostiles . | . . . . . Parts Fried 1 | . 1 . . . Impact Corruptions 1 | . 1 . . . Robots Melted . | . . . . . Combat Hostiles . | . . . . . Parts Melted . | . . . . . Heat Transferred . | . . . . . Parts Sabotaged . | . . . . . Parts Stolen . | . . . . . Parts Stripped . | . . . . . Power Chain Reactions . | . . . . . Alert | -11 -10 -10 -10 -9 ------- Run | Yrd Mat Min Exi Min Maximum Alert Level 1 | . . 1 . . Low Security (%) 91 | 100 100 79 . 100 Level 1 8 | . . 20 . . Level 2 . | . . . . . Level 3 . | . . . . . Level 4 . | . . . . . Level 5 . | . . . . . High Security . | . . . . . Max Security . | . . . . . Peak Influence 224 | 5 70 224 . 20 Initial . | . . . . . Average 48 | 1 13 101 . 4 Influence Increases 627 | 10 195 400 . 22 Destroy 0b10 Robot/C 420 | . 100 320 . . Destroy 0b10 Robot/NC 30 | 10 20 . . . Destroy Leader 64 | . 14 50 . . Trap Triggered on 0b10 10 | . 10 . . . Successful Hack 5 | . 5 . . . Disable Machine 15 | . 15 . . . Destroy Structure 23 | . 1 . . 22 Lose Combat Pursuer 60 | . 30 30 . . Influence Decreases 627 | 10 195 224 176 22 Entered New Map 176 | . . . 176 . Time Decay 434 | 10 178 224 . 22 Purge Threat 17 | . 17 . . . Squads Dispatched 1 | . 1 . . . Investigation . | . . . . . Extermination . | . . . . . Reinforcement 1 | . 1 . . . Assault . | . . . . . Garrison . | . . . . . Intercept . | . . . . . Searches Triggered . | . . . . . Construction Impeded . | . . . . . Haulers Reinforced . | . . . . . Active Scanning Responses . | . . . . . Cargo Convoy Interrupts . | . . . . . Stealth | -11 -10 -10 -10 -9 --------- Run | Yrd Mat Min Exi Min Distress Signals 4 | . 3 . . 1 Communications Jammed . | . . . . . Distress Signals . | . . . . . Times Spotted 48 | . 19 19 . 10 Peak Tracking Total 8 | . 4 3 . 8 Tactical Retreats 3 | . 2 1 . . Traps | -11 -10 -10 -10 -9 ------- Run | Yrd Mat Min Exi Min Traps Triggered . | . . . . . Indirectly . | . . . . . Trap Hack Attempts . | . . . . . Triggered . | . . . . . Disarmed . | . . . . . Reprogrammed 4 | . 4 . . . Reused 1 | . 1 . . . Traps Extracted . | . . . . . Installed . | . . . . . Triggered 1 | . 1 . . . Machines | -11 -10 -10 -10 -9 ---------- Run | Yrd Mat Min Exi Min Machines Disabled 1 | . 1 . . . Max in Single Turn 1 | . 1 . . . Machines Repaired . | . . . . . Machines Dismantled . | . . . . . Machines Sabotaged . | . . . . . Overloaded Fab Kills . | . . . . . Hacking | -11 -10 -10 -10 -9 --------- Run | Yrd Mat Min Exi Min Machines Accessed 5 | . 3 1 1 . Terminals 4 | . 3 1 . . Fabricators . | . . . . . Repair Stations . | . . . . . Recycling Units . | . . . . . Scanalyzers . | . . . . . Garrison Access . | . . . . . Total Hacks 31 | . 9 2 20 . Successful 25 | . 5 . 20 . Failed 6 | . 4 2 . . Catastrophic 2 | . 2 . . . Database Lockouts . | . . . . . Manual 1 | . 1 . . . Terminals 11 | . 9 2 . . Fabricators . | . . . . . Repair Stations . | . . . . . Recycling Units . | . . . . . Scanalyzers . | . . . . . Garrison Access . | . . . . . Terminal Hacks 25 | . 5 . 20 . Record 20 | . . . 20 . Robot Analysis 1 | . 1 . . . Unreport Threat 1 | . 1 . . . Locate Traps 1 | . 1 . . . Reprogram Traps 1 | . 1 . . . Zone Layout 1 | . 1 . . . Fabricator Hacks . | . . . . . Repair Station Hacks . | . . . . . Recycling Unit Hacks . | . . . . . Scanalyzer . | . . . . . Garrison Access Hacks . | . . . . . Unauthorized Hacks . | . . . . . Terminals . | . . . . . Fabricators . | . . . . . Repair Stations . | . . . . . Recycling Units . | . . . . . Scanalyzers . | . . . . . Garrison Access . | . . . . . Data Cores Recovered . | . . . . . Used . | . . . . . Hacking Detections 2 | . 1 1 . . Full Trace Events . | . . . . . Feedback Events . | . . . . . Feedback Blocked . | . . . . . Robot Schematics Acquired . | . . . . . Robots Built . | . . . . . Authchips . | . . . . . Time . | . . . . . Total Robot Build Rating . | . . . . . Part Schematics Acquired . | . . . . . Parts Built . | . . . . . Authchips . | . . . . . Time . | . . . . . Total Part Build Rating . | . . . . . Part Studies Acquired . | . . . . . Parts Repaired . | . . . . . Time . | . . . . . Parts Recycled . | . . . . . Recycled Matter . | . . . . . Retrieved Matter . | . . . . . Retrieved Components . | . . . . . Parts Scanalyzed . | . . . . . Part Schematics Acquired . | . . . . . Parts Damaged . | . . . . . Bothacking | -11 -10 -10 -10 -9 ------------ Run | Yrd Mat Min Exi Min Used RIF Installer . | . . . . . Robots Hacked . | . . . . . Non-combat . | . . . . . Combat . | . . . . . Robot Hacks Applied . | . . . . . Relay Couplers Released . | . . . . . Fabnet Peak Effective % . | . . . . . Robots Rewired . | . . . . . Allies Hacked . | . . . . . Hacks Repelled . | . . . . . Allies | -11 -10 -10 -10 -9 -------- Run | Yrd Mat Min Exi Min Total Allies . | . . . . . Largest Group . | . . . . . Highest-Rated Group . | . . . . . Highest-Rated Ally . | . . . . . Total Orders . | . . . . . Ally Attacks . | . . . . . Total Damage . | . . . . . Kills . | . . . . . Allies Corrupted . | . . . . . Allies Melted . | . . . . . Intel | -11 -10 -10 -10 -9 ------- Run | Yrd Mat Min Exi Min Active Infowar (turns) 1903 | 12 632 546 637 76 Seismic 1903 | 12 632 546 637 76 Robot Analysis Total 1 | . 1 . . . Derelict Logs Recovered 2 | . . 2 . . Drone Launches . | . . . . . Drone Recoveries . | . . . . . Exploration | -11 -10 -10 -10 -9 ------------- Run | Yrd Mat Min Exi Min Turns Passed 1965 | 70 632 546 637 80 Spaces Moved 1023 | 30 290 282 390 31 Core 6 | 6 . . . . Treads 1017 | 24 290 282 390 31 Legs . | . . . . . Wheels . | . . . . . Hover . | . . . . . Flight . | . . . . . Fastest Speed 50 | 50 160 160 160 160 Average Speed 160 | 139 160 160 162 160 Slowest Speed 240 | 160 160 160 240 160 Overloaded Moves . | . . . . . Propulsion Burnouts . | . . . . . Robots Hopped . | . . . . . Potential Cave-ins . | . . . . . Cave-ins Triggered . | . . . . . Exploration Rate (%) 43 | 5 51 55 87 19 Regions Visited 4 Branch Regions 3 Pre-discovered Areas 2 | . . 1 1 . Known Exits Taken . | . . . . . Unknown Exits Taken 4 | 1 1 1 1 . Scrap Searched 1 | . . . . 1 Spaces Dug 14 | . 1 . . 13 Terrain Destroyed 36 | . 1 . . 35 Melee 1 | . 1 . . . Projectile . | . . . . . AOE 35 | . . . . 35 Terrain Rammed . | . . . . . Walls Destroyed . | . . . . . Machines Disabled . | . . . . . Actions | -11 -10 -10 -10 -9 --------- Run | Yrd Mat Min Exi Min Total 1239 | 45 407 341 393 53 Wait 116 | . 71 32 . 13 Move 1019 | 29 289 281 389 31 Hop . | . . . . . Pick Up 20 | 2 14 3 1 . Fast Attach 8 | 8 . . . . Attach . | . . . . . Detach . | . . . . . Swap 13 | . 6 1 2 4 Drop 9 | 1 2 5 1 . Fire 50 | 5 21 19 . 5 Melee 4 | . 4 . . . Ram . | . . . . . Kick . | . . . . . Crush . | . . . . . Escape Stasis . | . . . . . Rewire . | . . . . . Trap . | . . . . . Miscellaneous . | . . . . . Route ------- -11/Scrapyard -10/Materials -10/Mines (discovered 2 exits: [*Mat] / *Exi) -10/Exiles (discovered 2 exits: [*Min x2]) -9/Mines History --------- Turn | Location | Event 7 | -11/Scrapyard | Discovered new exit (range 16) 71 | -11/Scrapyard | Entered Materials 223 | -10/Materials | Discovered new exit (range 14) 307 | -10/Materials | Build established: Mutant 703 | -10/Materials | Entered Mines 716 | -10/Mines | Learned Materials trap positions 739 | -10/Mines | Received a Rocket Launcher from a helpful Derelict 967 | -10/Mines | Found a hidden stash of uninstalled traps 990 | -10/Mines | Learned location of Storage (-8) 1088 | -10/Mines | Discovered new exit (range 6) 1241 | -10/Mines | Deemed a non-threat by the Exiles lab entrance 1243 | -10/Mines | Discovered new exit (range 5) 1249 | -10/Mines | Entered Exiles 1270 | -10/Exiles | Discovered new exit (range 15) 1288 | -10/Exiles | Met 8R-AWN 1315 | -10/Exiles | Met EX-HEX 1360 | -10/Exiles | Met EX-BIN 1478 | -10/Exiles | Met EX-DEC 1510 | -10/Exiles | Learned location of Zion (-7) 1575 | -10/Exiles | Visited The Gauntlet 1865 | -10/Exiles | Discovered new exit (range 14) 1886 | -10/Exiles | Entered Mines 1889 | -9/Mines | Assembled infested the area 1894 | -9/Mines | Assisted by a Guerilla fighting off Assembled 1959 | -9/Mines | Core integrity fell below 50% 1965 | -9/Mines | Core integrity fell below 20% 1966 | -9/Mines | Destroyed by D-53 Grenadier with Mini Grenade Launcher Last Messages --------------- 01938_ HV Slug penetrates as-00089. 01938_ as-00089 suffers critical hit (Destroy). 01938_ as-00089 destroyed. 01947_ Acquired 3 matter. 01949_ Searching scrap... 01949_ Found Terrain Scanner. 01949_ Found Maul. 01949_ Found 33 Matter. 01950_ Acquired 33 matter. 01951_ The unstable cave ceiling collapses. 01956_ Lgt. Ion Engine destroyed. 01958_ Lgt. Treads destroyed. 01959_ K-01 Serf collects debris. 01962_ Lgt. Treads destroyed. 01962_ Shotgun destroyed. 01962_ Seismic Detector destroyed. 01962_ K-01 Serf collects debris. 01964_ The unstable cave ceiling collapses. 01964_ Destroyed Shock Absorption System. 01965_ The unstable cave ceiling collapses. Map ----- +----------------------------------------------------+ | ????????????????????????????????????????????? | | ????????????????????????????????????????????? | | ????????????????????????????????????????????? | | ????????????????????????#####???????????????? | | ???????????????????????## ##??????????????? | | ??????????????????????## ##?????????????? | | ??????????????????????# ##????????????? | | ??????????????????????? ###??????????? | | ???????????????????????? ##?????????? | | ????????????????????????# ##????????? | | ??????????????????####### #????????? | | ????????????????### """" ??????????? | | ???????????????## !! # """" ??????????? | | ?????????????### ! ## """" ??????????? | | ?????????????# !! #?# ??????????? | | ?????????????# !! #??# ##?????????? | | ?????????????### #???#####??????????? | | ???????????????## ###??????????????????? | | ???????????????## ##????????????????????? | | ???????????????# ##???????????????#?????? | | ???????????????# ## #########???? #???? | | ???????????????# ## ### #???? | | ???????????????# ### % " #???? | | ???????????????# ### %%"""?????? | | ???????????????# #???? | | ???????????????# @ % #???? | | ???????????????## % ;#??? | | ?????????????# # ##% ##??? | | ????????????# %= # [?########???? | | ????????????# # ##?##???????????? | | ????????????# d ###### #???????????????? | | ????????????# d # ?????? ???????????????? | | ????????????# ??????? ???????????????? | | ????????????## ??????? ??????????????? | | ????????????? ????????? ??????????????? | | ?????????????? ?????????# ?????????????? | | ?????????????? ??????????? ?????????????? | | ????????????????????????????? #????????????? | | ?????????????????????????????? #????????????? | | ????????????????????????????????????????????? | | ????????????????????????????????????????????? | | ????????????????????????????????????????????? | | ????????????????????????????????????????????? | | ????????????????????????????????????????????? | | ????????????????????????????????????????????? | | ????????????????????????????????????????????? | | ????????????????????????????????????????????? | | ????????????????????????????????????????????? | | ????????????????????????????????????????????? | | ????????????????????????????????????????????? | +----------------------------------------------------+ Best States ------------- Heat Dissipation 25 Energy Generation 10 Energy Capacity 125 Matter Stores 300 Matter Capacity 300 Sight Range 16 Terrain Scan Density 10 Evasion (%) 40 Recoil Reduction 2 Item Schematics ----------------- None Robot Schematics ------------------ None Fabricated ------------ Nothing Repaired ---------- Nothing Studied --------- None Alien Tech Used ----------------- None Achievements -------------- Deductive Reasoning I Have A Map? Challenges ------------ None Game ------ Seed PersonalMicrowarpCannon Manual? 0 Play Time 00:17:37 Cumulative 159.5 hours Start 2026.04.11 @ 11:33:38 End 2026.04.11 @ 11:52:45 Sessions 1 Manual Loads 0 Difficulty Rogue Special Mode None Game No. 245 Rogue 245 Adventurer 0 Explorer 0 Win Type - Total 1 Types 1/0/0/0/0/0/0/0/0/0 Lore% 54 Gallery% 51 Achievement% 29 Wizard Run 0 Options --------- Layout 1 ASCII 0 Keyboard 0 Movement Numpad Keybinds 0 Fullscreen 2 Font 32/SmallcapsGlow Map View 77x35 Zoom Use 0% Tactical HUD 1 Map Filters NONE Filters NONE Steam 1 RUN: 818f8c6d-d7e8-46ef-abd8-d218b4e35595